bitfinex-derivatives/quotes_ETHF0:USTF0_20250214
["timestamp","ask_amount","ask_price","bid_price","bid_amount"]
[1739560830766,0.72501,2757.6,2757.5,3.93827705]
[1739560831056,0.72501,2757.6,2757.5,0.00543705]
[1739560831263,0.72501,2757.6,2757.5,0.73047705]
[1739560831463,41.52501,2757.6,2757.5,0.73047705]
[1739560832550,40.8,2757.6,2757.5,0.73047705]
[1739560833159,41.52501,2757.6,2757.5,0.73047705]
[1739560833560,40.8,2757.6,2757.5,1.27587705]
[1739560833959,2.8108,2758.0,2757.5,3.75863705]
[1739560834156,0.72494,2757.9,2757.8,0.72494]
[1739560834354,2.8108,2758.0,2757.9,0.72493]
[1739560834355,3.53573,2758.0,2757.9,0.72493]
[1739560834557,43.18693,2758.0,2757.9,0.72493]
[1739560834759,3.2078,2758.2,2757.6,2.7858993]
[1739560835060,3.93267,2758.2,2758.1,0.72488]
[1739560835250,44.73267,2758.2,2758.1,0.72488]
[1739560835952,44.0078,2758.2,2758.1,0.72488]
[1739560836151,40.8,2758.2,2758.1,0.72488]
[1739560837964,41.52485,2758.2,2758.1,0.72488]
[1739560838265,40.8,2758.2,2758.1,0.72488]
[1739560840461,0.00543705,2758.4,2758.3,0.72483]
[1739560840858,0.72466,2759.0,2758.9,0.72467]
[1739560841262,3.93244,2759.1,2759.0,0.72464]
[1739560841460,44.73242,2759.1,2759.0,0.72464]
[1739560841663,40.8,2759.1,2758.7,0.5375]
[1739560841959,0.72466,2759.0,2758.9,0.72466]
[1739560842366,41.52463,2759.1,2759.0,0.72464]
[1739560842563,40.8,2759.1,2759.0,0.72464]
[1739560844160,40.8,2759.1,2759.0,1.26154]
[1739560850459,0.72464,2759.0,2758.9,3.93246]
[1739560850667,1.1388,2759.0,2758.9,3.93246]
[1739560851560,40.8,2759.1,2759.0,0.72464]
[1739560853562,40.8,2759.1,2758.9,3.7736]
[1739560853764,42.07763,2759.1,2758.9,4.49825]
[1739560853964,41.353,2759.1,2759.0,0.72464]
[1739560854473,42.07762,2759.1,2759.0,0.72464]
[1739560854669,0.72464,2759.0,2758.9,4.49825]
[1739560854860,41.353,2759.1,2758.9,3.7736]
[1739560855064,40.8,2759.1,2759.0,0.72464]
[1739560855770,0.72473,2758.7,2758.6,3.2078]
[1739560856074,1.1472,2759.0,2758.3,3.2078]
[1739560856266,0.72487,2758.2,2758.0,0.7249]
[1739560856461,0.72488,2758.1,2758.0,0.7249]
[1739560856768,5.9936993,2758.5,2758.0,0.72491]
[1739560856769,0.72486,2758.2,2758.0,0.72491]
[1739560856968,40.8,2758.1,2758.0,0.72491]
[1739560858670,41.5249,2758.1,2757.9,3.93272]
[1739560858871,41.5249,2758.1,2758.0,0.72491]
[1739560859270,40.8,2758.1,2758.0,0.72491]
[1739560860371,41.52489,2758.1,2758.0,0.72491]
[1739560860574,41.52489,2758.1,2757.9,3.93271]
[1739560860765,41.52489,2758.1,2758.0,0.72491]
[1739560861168,40.8,2758.1,2758.0,0.72491]
[1739560861970,3.2078,2758.5,2757.9,3.2078]
[1739560862173,0.72483,2758.4,2758.2,0.72484]
[1739560862380,0.72483,2758.4,2758.2,0.72483]
[1739560862786,0.72483,2758.4,2757.9,7.8060093]
[1739560862972,40.8,2758.5,2758.0,0.72491]
[1739560863273,40.8,2758.5,2757.9,3.2078]
[1739560863479,0.72489,2758.1,2758.0,0.7249]
[1739560863782,0.72481,2758.4,2758.3,0.72481]
[1739560863974,40.8,2758.5,2758.2,0.72484]
[1739560863975,0.72483,2758.3,2758.2,0.72484]
[1739560864177,0.72485,2758.3,2757.9,3.2078]
[1739560864482,40.8,2758.5,2757.9,3.2078]
[1739560864777,40.8,2758.5,2758.2,0.72485]
[1739560864980,0.7248,2758.4,2758.3,0.72483]
[1739560865283,40.8,2758.5,2757.9,5.0201]
[1739560865577,0.72484,2758.3,2758.2,0.72484]
[1739560866375,0.72487,2758.2,2758.1,0.72487]
[1739560866582,0.72485,2758.3,2758.2,0.72485]
[1739560866778,4.5975093,2759.1,2758.2,3.2078]
[1739560866983,0.72483,2758.3,2758.2,3.2078]
[1739560867175,0.72483,2758.3,2758.2,0.72484]
[1739560867485,41.52483,2758.3,2758.2,0.72484]
[1739560868285,40.8,2758.3,2758.2,0.72484]
[1739560868673,40.8,2758.3,2757.9,5.9936993]
[1739560868871,0.72487,2758.2,2758.1,0.72487]
[1739560869083,0.5562,2758.2,2758.1,0.72487]
[1739560869383,1.28105,2758.2,2758.1,0.72487]
[1739560869683,40.8,2758.3,2758.2,0.72485]
[1739560869976,40.8,2758.3,2758.2,3.93265]
[1739560871780,0.72471,2758.8,2758.7,0.72472]
[1739560872175,0.72474,2758.7,2758.6,0.72474]
[1739560872481,0.72471,2758.8,2758.7,0.72472]
[1739560872780,0.72474,2758.7,2758.6,0.72474]
[1739560872980,41.52474,2758.7,2758.6,0.72474]
[1739560873373,40.8,2758.7,2758.6,0.72474]
[1739560874686,40.8,2758.7,2758.3,1.6761]
[1739560874883,0.7248,2758.5,2758.4,0.72479]
[1739560875089,0.7248,2758.4,2758.3,0.72482]
[1739560875382,0.72483,2758.3,2758.2,3.2078]
[1739560876083,0.72501,2757.7,2757.6,0.725]
[1739560876286,0.72501,2757.6,2757.5,0.00543705]
[1739560876477,41.52501,2757.6,2757.5,0.00543705]
[1739560876678,41.52501,2757.6,2757.5,0.73047705]
[1739560877286,41.52501,2757.6,2757.5,0.00543705]
[1739560878079,40.8,2757.6,2757.5,0.73047705]
[1739560878280,4.3663,2758.5,2758.3,0.72483]
[1739560878480,0.72482,2758.4,2758.2,0.72485]
[1739560878785,4.3663,2758.5,2758.4,0.7248]
[1739560878786,1.1585,2758.5,2758.4,0.7248]
[1739560878981,1.1585,2758.5,2758.2,3.2078]
[1739560878982,40.8,2758.6,2758.5,0.72478]
[1739560879389,40.8,2758.6,2758.4,0.5743]
[1739560879589,40.8,2758.6,2758.5,0.72478]
[1739560880583,41.52476,2758.6,2758.4,1.29909]
[1739560880879,0.72478,2758.5,2758.4,0.5743]
[1739560881078,40.8,2758.6,2758.3,1.1571]
[1739560881279,40.8,2758.6,2758.2,3.2078]
[1739560881480,0.72483,2758.3,2758.2,3.2078]
[1739560881682,40.8,2758.6,2758.3,0.72481]
[1739560881683,0.7248,2758.5,2758.3,0.72481]
[1739560881888,0.72482,2758.4,2758.2,3.93265]
[1739560882190,40.8,2758.6,2758.2,3.93265]
[1739560882381,40.8,2758.6,2758.3,0.72482]
[1739560882582,40.8,2758.6,2758.2,3.2078]
[1739560882888,41.52475,2758.6,2758.4,0.72478]
[1739560883086,40.8,2758.6,2758.2,3.2078]
[1739560883381,0.72478,2758.5,2758.3,0.72481]
[1739560883587,40.8,2758.6,2758.2,3.93263]
[1739560883782,0.72478,2758.5,2758.3,0.72482]
[1739560883981,40.8,2758.6,2758.2,3.2078]
[1739560884184,40.8,2758.6,2758.2,3.93265]
[1739560884487,0.72483,2758.3,2758.2,3.93265]
[1739560884677,0.72483,2758.3,2758.2,3.2078]
[1739560885084,2.7858993,2758.3,2757.7,1.85157]
[1739560885386,0.725,2757.7,2757.6,0.725]
[1739560885579,5.9936993,2758.0,2757.5,3.21323705]
[1739560885782,0.72501,2757.6,2757.5,3.93826705]
[1739560885992,0.72501,2757.6,2757.5,0.00543705]
[1739560886179,1.30901,2757.6,2757.5,0.00543705]
[1739560886489,0.72512,2757.2,2757.1,0.72513]
[1739560886688,1.1471,2757.6,2756.9,0.562]
[1739560886883,0.72511,2757.3,2757.1,0.72513]
[1739560887284,2.7858993,2757.4,2756.9,0.562]
[1739560887483,5.9936993,2757.4,2757.0,0.72516]
[1739560887691,5.9936993,2757.4,2756.9,0.73062705]
[1739560887897,5.9936993,2757.4,2756.9,0.00543705]
[1739560888185,5.9936993,2757.4,2756.9,0.73062705]
[1739560888186,0.72516,2757.1,2756.9,0.73062705]
[1739560888387,0.72517,2757.0,2756.9,0.00543705]
[1739560889089,2.7858993,2757.1,2756.9,0.00543705]
[1739560889290,3.5110493,2757.1,2756.9,0.73062705]
[1739560889494,5.9936993,2757.4,2756.9,0.00543705]
[1739560889682,0.72517,2757.0,2756.9,0.00543705]
[1739560890894,5.9936993,2757.4,2756.9,0.73062705]
[1739560891093,0.72517,2757.0,2756.9,0.00543705]
[1739560891586,0.72517,2757.0,2756.9,0.73063705]
[1739560891791,0.72511,2757.3,2756.9,0.00543705]
[1739560892196,0.73047705,2757.5,2757.4,0.72506]
[1739560892381,0.00543705,2757.5,2757.4,0.72506]
[1739560892588,0.73047705,2757.5,2757.4,0.72506]
[1739560892793,0.00543705,2757.5,2757.3,0.72507]
[1739560893094,0.73048705,2757.5,2757.3,0.72508]
[1739560893295,0.00543705,2757.5,2757.4,0.72506]
[1739560893597,0.73047705,2757.5,2757.4,0.72506]
[1739560893894,0.00543705,2757.5,2757.4,0.72506]
[1739560894891,0.73047705,2757.5,2757.4,0.72506]
[1739560895295,0.73047705,2757.5,2757.3,0.72509]
[1739560895695,0.00543705,2757.5,2757.2,1.8779]
[1739560895895,0.00543705,2757.5,2757.2,1.1528]
[1739560896290,0.72506,2757.4,2757.3,0.72509]
[1739560896595,0.73048705,2757.5,2757.4,0.72506]
[1739560896789,0.73048705,2757.5,2757.2,1.1528]
[1739560896990,0.72509,2757.4,2757.3,0.72509]
[1739560897495,0.73048705,2757.5,2757.4,0.72506]
[1739560897698,0.72507,2757.4,2757.3,0.72507]
[1739560897996,0.72507,2757.4,2757.3,0.72509]
[1739560898198,0.00543705,2757.5,2757.2,1.1528]
[1739560898397,0.72507,2757.4,2757.3,0.72507]
[1739560898598,0.72509,2757.3,2757.2,1.87791]
[1739560899092,0.00543705,2757.5,2757.2,1.1528]
[1739560899590,0.00543705,2757.5,2757.4,0.72506]
[1739560899591,0.73049705,2757.5,2757.4,0.72506]
[1739560899790,0.00543705,2757.5,2757.4,3.2078]
[1739560899995,0.73050705,2757.5,2757.4,3.93286]
[1739560902395,0.73050705,2757.5,2757.4,3.2078]
[1739560903609,0.73050705,2757.5,2757.4,3.93286]
[1739560903899,0.73050705,2757.5,2757.4,3.2078]
[1739560904299,1.81267,2757.4,2756.9,3.21323705]
[1739560904506,0.72517,2757.0,2756.9,0.73060705]
[1739560904996,41.52517,2757.0,2756.9,0.73060705]
[1739560907703,40.8,2757.0,2756.9,0.73060705]
[1739560907903,1.81808705,2757.5,2757.2,0.72512]
[1739560907904,0.7251,2757.3,2757.2,0.72512]
[1739560908202,0.72509,2757.4,2757.3,0.72507]
[1739560908397,41.52509,2757.4,2757.3,0.72507]
[1739560910010,40.8,2757.4,2757.3,0.72507]
[1739560910494,40.8,2757.4,2757.3,2.43037]
[1739560911094,41.52506,2757.4,2757.3,0.72507]
[1739560911501,40.8,2757.4,2757.3,0.72507]
[1739560911705,40.8,2757.4,2757.3,1.85187]
[1739560912601,41.52506,2757.4,2757.3,1.85187]
[1739560912804,40.8,2757.4,2757.3,1.85187]
[1739560913000,41.52506,2757.4,2757.3,1.30559]
[1739560913191,45.3985893,2757.4,2756.9,0.00543705]
[1739560913397,0.72515,2757.1,2757.0,0.72514]
[1739560913600,0.72513,2757.2,2757.1,0.72512]
[1739560914007,40.8,2757.2,2757.1,0.72514]
[1739560914901,40.8,2757.2,2757.1,3.93294]
[1739560915409,40.8,2757.2,2757.1,0.72514]
[1739560915603,40.8,2757.2,2757.1,3.93294]
[1739560917512,41.52512,2757.2,2757.1,3.93294]
[1739560917811,40.8,2757.2,2756.9,0.00543705]
[1739560918111,0.72517,2757.0,2756.9,0.73060705]
[1739560918501,1.30826,2757.1,2757.0,0.72517]
[1739560918903,0.72517,2757.0,2756.9,0.73061705]
[1739560919104,0.5831,2757.1,2756.9,0.00543705]
[1739560919411,0.72517,2757.0,2756.9,0.73062705]
[1739560920506,0.72517,2757.0,2756.9,0.00543705]
[1739560921408,0.72517,2757.0,2756.9,0.73063705]
[1739560921610,0.5831,2757.1,2756.9,0.73063705]
[1739560921611,1.30827,2757.1,2757.0,0.72517]
[1739560923007,0.72517,2757.0,2756.9,0.00543705]
[1739560923614,2.38517,2757.0,2756.9,0.00543705]
[1739560925708,0.72528,2756.6,2756.5,0.72528]
[1739560926111,41.52528,2756.6,2756.5,0.72528]
[1739560928316,40.8,2756.6,2756.5,0.72528]
[1739560928515,41.52528,2756.6,2756.5,0.72528]
[1739560929016,40.8,2756.6,2756.4,3.2078]
[1739560929315,0.7253,2756.5,2756.4,0.72531]
[1739560929622,0.72533,2756.4,2756.3,0.00543705]
[1739560930321,0.72533,2756.4,2756.3,0.73078705]
[1739560932320,0.72533,2756.4,2756.3,0.00543705]
[1739560933013,1.29073,2756.4,2756.3,0.00543705]
[1739560933219,4.49853,2756.4,2756.3,0.00543705]
[1739560937522,3.62729,2756.0,2754.4,0.01569808]
[1739560937722,2.7858993,2754.5,2754.4,0.74154808]
[1739560938225,40.8,2754.5,2754.4,0.74154808]
[1739560938925,44.3117293,2754.5,2754.4,0.01569808]
[1739560942117,0.72588,2754.3,2753.6,3.2078]
[1739560942319,3.5119193,2753.8,2753.5,0.72609]
[1739560942514,2.7858993,2753.8,2753.3,3.757]
[1739560942732,2.7858993,2753.5,2753.4,0.72612]
[1739560943124,3.9338,2753.9,2753.3,1.106]
[1739560943125,2.7858993,2754.1,2753.3,5.9738]
[1739560943324,2.7858993,2754.4,2754.3,0.72588]
[1739560944325,2.7858993,2754.4,2754.0,1.6783]
[1739560944531,2.7858993,2754.4,2754.3,0.72588]
[1739560946425,2.79133635,2754.7,2754.6,0.7258]
[1739560946627,0.00543705,2754.7,2754.6,0.7258]
[1739560947729,0.00543705,2754.7,2754.6,2.3826]
[1739560948427,2.79133635,2754.7,2754.6,1.6568]
[1739560948625,2.79133635,2754.7,2754.6,2.3826]
[1739560948826,5.99913635,2754.7,2754.6,2.3826]
[1739560950132,5.99913635,2754.7,2754.6,1.6568]
[1739560950332,5.99913635,2754.7,2754.2,3.2078]
[1739560950526,5.99913635,2754.7,2754.0,2.8258]
[1739560950527,3.5117893,2754.3,2754.0,2.8258]
[1739560950732,3.5117893,2754.3,2754.1,0.72591]
[1739560950933,40.8,2754.2,2754.1,0.72593]
[1739560951435,40.8,2754.2,2754.0,1.1658]
[1739560951739,41.52592,2754.2,2754.1,0.72593]
[1739560951939,40.8,2754.2,2754.1,0.72593]
[1739560952239,0.7258,2754.6,2754.4,0.72584]
[1739560952428,0.73122705,2754.7,2754.5,0.72582]
[1739560952628,0.7258,2754.6,2754.5,0.72582]
[1739560952937,40.8,2754.6,2754.5,0.72582]
[1739560954439,40.8,2754.6,2754.4,0.541]
[1739560954636,1.81458,2754.5,2754.0,1.89175]
[1739560954833,3.2078,2754.3,2754.0,1.31715]
[1739560955028,0.72591,2754.2,2754.0,1.31715]
[1739560955234,40.8,2754.1,2754.0,1.31715]
[1739560955437,0.72599,2754.0,2753.8,0.541]
[1739560955638,40.8,2754.1,2754.0,0.72596]
[1739560956238,41.52593,2754.1,2753.8,0.541]
[1739560956438,41.52593,2754.1,2753.9,0.72599]
[1739560956634,3.2078,2754.0,2753.9,0.72599]
[1739560957042,3.93376,2754.0,2753.8,1.267]
[1739560957238,3.2078,2754.0,2753.9,0.72599]
[1739560957937,3.93377,2754.0,2753.8,1.267]
[1739560958142,3.756,2754.0,2753.8,0.541]
[1739560958439,0.72599,2753.9,2753.8,1.26701]
[1739560958637,0.72599,2753.9,2753.8,0.541]
[1739560958842,0.72601,2753.8,2753.6,1.27626]
[1739560959644,6.5418993,2754.0,2753.3,3.2078]
[1739560959842,8.2028993,2754.0,2753.7,0.72603]
[1739560960041,0.72601,2753.8,2753.4,1.1119]
[1739560960242,0.72601,2753.8,2753.6,0.72604]
[1739560960643,6.5418993,2754.0,2753.4,1.1119]
[1739560960847,40.8,2754.1,2753.5,1.81524]
[1739560961147,41.52595,2754.1,2753.6,1.81517]
[1739560961446,40.8,2754.1,2754.0,0.72596]
[1739560962037,3.2078,2754.3,2754.2,0.72591]
[1739560962542,40.8,2754.4,2754.3,0.72588]
[1739560962747,3.93351,2755.0,2754.6,0.7258]
[1739560963043,0.72573,2754.9,2754.6,0.7258]
[1739560963246,40.80543705,2754.7,2754.6,0.7258]
[1739560964239,40.80543705,2754.7,2754.1,1.81478]
[1739560964840,40.80543705,2754.7,2754.1,3.47578]
[1739560965142,40.80543705,2754.7,2754.6,0.7258]
[1739560966238,0.00543705,2754.7,2754.6,3.9336]
[1739560968049,40.8,2755.0,2754.9,0.72572]
[1739560968252,40.8,2755.0,2754.9,3.93352]
[1739560968441,40.8,2755.0,2754.9,6.7194193]
[1739560968647,3.2078,2755.6,2755.4,0.72558]
[1739560968947,3.2078,2755.6,2755.5,0.72556]
[1739560969548,3.2078,2755.6,2755.3,0.00544712]
[1739560969748,3.2078,2755.6,2755.4,0.72558]
[1739560970049,3.93335,2755.6,2755.3,0.00544712]
[1739560970454,3.2078,2755.6,2755.3,0.00544712]
[1739560970749,0.72558,2755.5,2755.3,0.73106712]
[1739560970949,0.72559,2755.5,2755.3,0.73106712]
[1739560971149,0.72559,2755.4,2755.3,0.00544712]
[1739560973043,41.52559,2755.4,2755.3,0.00544712]
[1739560974254,40.8,2755.4,2755.3,0.73106712]
[1739560974652,41.52559,2755.4,2755.3,0.73106712]
[1739560974848,41.52559,2755.4,2755.3,0.00544712]
[1739560975555,41.52559,2755.4,2755.3,0.73106712]
[1739560976756,41.52559,2755.4,2755.3,0.00544712]
[1739560976957,41.52559,2755.4,2755.3,0.73106712]
[1739560977853,41.52559,2755.4,2755.3,0.00544712]
[1739560978256,41.52559,2755.4,2755.3,0.73106712]
[1739560978457,40.8,2755.4,2755.3,0.73106712]
[1739560979250,40.8,2755.4,2755.3,1.82436712]
[1739560979760,0.00544712,2755.8,2755.7,0.72551]
[1739560980057,40.80544712,2755.8,2755.7,0.72551]
[1739560984862,40.80544712,2755.8,2755.7,3.93331]
[1739560985269,40.80544712,2755.8,2755.7,4.50581]
[1739560991358,0.00544712,2755.8,2755.7,4.50581]
[1739560993870,40.8,2756.3,2755.7,9.7803]
[1739560994170,40.8,2756.3,2756.2,3.93318]
[1739560995168,40.8,2756.3,2756.2,6.7190793]
[1739560995567,40.8,2756.3,2756.2,7.2694793]
[1739560997872,0.00544712,2756.5,2756.4,0.72533]
[1739561000572,0.00544712,2756.5,2756.2,3.2078]
[1739561000776,0.73076712,2756.5,2756.1,1.659]
[1739561001076,0.5444,2756.4,2756.3,0.72534]
[1739561001971,0.00544712,2756.5,2756.4,0.72533]
[1739561008479,0.00544712,2756.5,2756.4,0.90949777]
[1739561014080,1.0875,2756.8,2756.4,0.90949777]
[1739561014269,1.0875,2756.8,2756.7,6.7189493]
[1739561014472,1.0875,2756.8,2756.7,8.3769493]
[1739561014677,1.0875,2756.8,2756.7,9.41410384]
[1739561014877,1.0875,2756.8,2756.7,8.3769493]
[1739561015079,1.0875,2756.8,2756.7,9.41410384]
[1739561015276,1.0875,2756.8,2756.7,8.3769493]
[1739561015479,0.00544712,2757.0,2756.9,0.7252]
[1739561015879,40.80544712,2757.0,2756.9,0.7252]
[1739561016384,40.80544712,2757.0,2756.9,1.76227695]
[1739561017180,40.80544712,2757.0,2756.9,0.7252]
[1739561017887,0.00544712,2757.0,2756.9,0.7252]
[1739561021378,7.12e-06,2757.0,2756.9,0.7252]
[1739561021879,7.12e-06,2757.0,2756.9,1.7604431]
[1739561022075,7.12e-06,2757.0,2756.9,0.7252]
[1739561023387,40.80000712,2757.0,2756.9,0.7252]
[1739561024087,7.12e-06,2757.0,2756.9,0.7252]
[1739561028184,7.12e-06,2757.0,2756.9,2.3832]
[1739561034898,7.12e-06,2757.0,2756.9,2.7464]
[1739561040504,7.12e-06,2757.0,2756.9,3.78223498]
[1739561041003,7.12e-06,2757.0,2756.9,1.76103498]
[1739561041211,7.12e-06,2757.0,2756.9,2.3822]
[1739561041396,7.12e-06,2757.0,2756.9,0.7252]
[1739561045111,1.14350712,2757.0,2756.7,4.5950206]
[1739561045299,1.14350712,2757.0,2756.7,3.2078]
[1739561045300,0.72522,2756.9,2756.7,3.2078]
[1739561045504,0.72529,2756.6,2756.3,1.3872206]
[1739561045700,1.7354,2756.5,2756.3,2.1125706]
[1739561045903,1.7354,2756.5,2756.3,0.72535]
[1739561046103,40.8,2756.4,2756.3,0.72535]
[1739561046502,40.8,2756.4,2756.0,1.657]
[1739561046707,40.8,2756.4,2756.3,0.72535]
[1739561046906,40.8,2756.4,2756.0,1.657]
[1739561047207,40.8,2756.4,2756.1,0.72539]
[1739561047509,40.8,2756.4,2756.2,0.72536]
[1739561047712,40.8,2756.4,2755.8,2.7858993]
[1739561047912,40.8,2756.4,2756.2,0.72537]
[1739561049811,40.8,2756.4,2755.7,4.8648]
[1739561050017,0.72539,2756.2,2755.9,0.72544]
[1739561050509,3.93317,2756.3,2756.0,0.72542]
[1739561050703,0.72539,2756.2,2756.0,0.72542]
[1739561050908,0.72543,2756.0,2755.8,0.72548]
[1739561051218,1.1542,2755.9,2755.8,0.72548]
[1739561051508,1.7149,2755.9,2755.8,0.72548]
[1739561055121,1.1412,2755.9,2755.8,0.72548]
[1739561055710,5.9936993,2756.8,2755.9,1.8136]
[1739561055906,0.5599,2756.3,2756.1,3.2078]
[1739561056116,0.5599,2756.3,2756.2,0.72538]
[1739561056915,0.5599,2756.3,2756.1,3.2078]
[1739561057119,1.124,2756.2,2755.9,1.657]
[1739561057315,1.124,2756.2,2756.0,0.72543]
[1739561057617,1.124,2756.2,2756.1,0.72541]
[1739561058020,0.5751,2756.2,2756.1,0.72541]
[1739561059618,0.5751,2756.2,2755.8,3.7818]
[1739561060125,1.30048,2756.2,2755.9,0.72544]
[1739561060318,0.5615,2756.1,2755.8,3.2078]
[1739561060519,0.5615,2756.1,2755.9,0.72545]
[1739561060823,0.5615,2756.1,2755.8,3.2078]
[1739561061025,0.5615,2756.1,2756.0,0.72543]
[1739561062424,0.5751,2756.2,2756.1,0.72541]
[1739561062620,0.5751,2756.2,2755.8,3.2078]
[1739561062924,1.30049,2756.2,2755.9,0.72545]
[1739561063128,1.30049,2756.2,2756.0,0.72543]
[1739561063427,1.30049,2756.2,2755.9,0.72544]
[1739561063625,3.7829,2756.2,2755.8,3.2078]
[1739561063923,0.72541,2756.1,2755.8,3.2078]
[1739561064122,0.72541,2756.1,2755.9,0.72545]
[1739561064628,6.5687993,2756.2,2755.6,0.5388]
[1739561064823,1.81354,2756.1,2755.5,0.72555]
[1739561065025,1.81354,2756.1,2755.3,0.00544712]
[1739561065026,0.72549,2755.8,2755.6,0.72552]
[1739561065220,1.1104,2755.7,2755.3,0.00544712]
[1739561065423,0.72557,2755.5,2755.3,0.73104712]
[1739561065619,0.72559,2755.4,2755.3,0.00544712]
[1739561065920,0.72558,2755.5,2755.3,0.00544712]
[1739561066119,0.72558,2755.5,2755.3,0.73106712]
[1739561066318,46.7936993,2755.6,2755.3,0.00544712]
[1739561066621,44.73335,2755.6,2755.4,0.72558]
[1739561066823,44.0078,2755.6,2755.3,0.00544712]
[1739561067126,44.73335,2755.6,2755.4,0.72557]
[1739561067327,44.0078,2755.6,2755.4,0.72559]
[1739561067629,44.0078,2755.6,2755.5,0.72556]
[1739561068922,3.2078,2755.9,2755.4,3.3724993]
[1739561069227,3.2078,2755.9,2755.8,0.72549]
[1739561069418,44.0078,2755.9,2755.8,0.72549]
[1739561070232,44.0078,2755.9,2755.4,0.5866]
[1739561070426,46.7936993,2755.9,2755.4,0.5866]
[1739561071025,0.72552,2755.7,2755.5,0.72554]
[1739561071224,46.7936993,2755.9,2755.5,0.72554]
[1739561071425,1.86336,2755.6,2755.4,1.31217]
[1739561071821,1.1378,2755.6,2755.3,2.25504712]
[1739561072027,0.72557,2755.5,2755.3,2.25504712]
[1739561072326,1.1378,2755.6,2755.3,0.59804712]
[1739561072623,0.72559,2755.4,2755.3,0.00544712]
[1739561073020,0.72559,2755.4,2755.3,0.73106712]
[1739561074124,4.51278,2755.5,2755.4,0.72559]
[1739561074729,3.2078,2755.5,2755.4,0.72559]
[1739561075527,40.8,2755.9,2755.8,0.72549]
[1739561080227,3.2078,2756.5,2756.0,1.81357]
[1739561080535,3.2078,2756.5,2756.4,0.72533]
[1739561081131,44.0078,2756.5,2756.4,0.72533]
[1739561081329,40.8,2756.5,2756.4,0.72533]
[1739561082831,0.5357,2756.9,2756.8,0.72522]
[1739561083031,0.58270712,2757.0,2756.9,0.7252]
[1739561083234,40.80000712,2757.0,2756.9,3.933]
[1739561084334,7.12e-06,2757.0,2756.9,5.59]
[1739561084537,1.84348,2758.1,2757.1,1.81283]
[1739561084731,40.8,2758.0,2757.6,0.72499]
[1739561084932,40.8,2758.0,2757.5,3.2078]
[1739561084933,41.52492,2758.0,2757.5,4.49963]
[1739561085134,41.52492,2758.0,2757.5,5.06893]
[1739561085439,41.52492,2758.0,2757.5,4.3439]
[1739561085833,0.72494,2757.9,2757.5,4.34934712]
[1739561086034,44.31625971,2758.0,2757.5,5.07436712]
[1739561086233,0.72494,2757.9,2757.5,3.21324712]
[1739561086838,3.93274,2757.9,2757.5,3.21324712]
[1739561087038,3.2078,2757.9,2757.5,3.21324712]
[1739561087340,0.72501,2757.6,2757.5,0.00544712]
[1739561087529,0.725,2757.7,2757.5,0.00544712]
[1739561087733,3.2078,2757.6,2757.5,0.00544712]
[1739561087939,45.31561,2757.6,2757.5,0.00544712]
[1739561088434,44.5906,2757.6,2757.5,0.00544712]
[1739561088642,44.5906,2757.6,2757.5,0.73048712]
[1739561089335,41.3828,2757.6,2757.5,0.73048712]
[1739561090438,41.3828,2757.6,2757.5,0.00544712]
[1739561090741,45.31561,2757.6,2757.5,0.00544712]
[1739561091237,50.5906,2757.6,2756.8,3.2078]
[1739561091432,3.2078,2757.3,2757.2,0.72512]
[1739561092437,3.2078,2757.3,2757.0,0.00544712]
[1739561092743,3.2078,2757.3,2757.1,0.72513]
[1739561093039,3.9329,2757.3,2757.1,0.72513]
[1739561093239,3.2078,2757.3,2757.2,0.72512]
[1739561093942,3.9329,2757.3,2757.2,0.72512]
[1739561094442,3.7951,2757.3,2757.2,0.72512]
[1739561095744,4.52019,2757.3,2757.2,0.72512]
[1739561099845,3.7951,2757.3,2757.0,0.00544712]
[1739561100045,0.72514,2757.1,2757.0,0.73058712]
[1739561100241,0.72514,2757.1,2757.0,0.00544712]
[1739561100639,3.5110393,2757.1,2757.0,0.00544712]
[1739561100843,0.72529,2756.6,2756.5,0.72528]
[1739561101151,1.813,2756.9,2756.1,3.3904]
[1739561101344,0.5905,2756.5,2756.1,0.5749]
[1739561101551,0.5905,2756.5,2756.0,0.72541]
[1739561101552,0.72539,2756.2,2756.0,0.72541]
[1739561101850,45.27934,2756.4,2756.2,0.72536]
[1739561102046,45.28478712,2756.4,2756.2,0.72536]
[1739561102649,44.55944712,2756.4,2756.1,0.72541]
[1739561102849,44.55944712,2756.4,2756.0,0.72543]
[1739561103046,44.55944712,2756.4,2755.8,0.59434712]
[1739561103253,0.72542,2756.1,2755.9,0.72546]
[1739561103945,44.55944712,2756.4,2755.8,0.59434712]
[1739561104152,0.72546,2755.9,2755.8,0.00544712]
[1739561104849,0.72545,2756.0,2755.8,0.73092712]
[1739561105042,3.2078,2756.1,2755.8,0.00544712]
[1739561105243,1.28576,2755.9,2755.8,0.00544712]
[1739561106150,1.83076,2755.9,2755.8,0.00544712]
[1739561106455,1.1053,2755.9,2755.8,0.73093712]
[1739561106949,1.1053,2755.9,2755.8,0.00544712]
[1739561107346,1.1053,2755.9,2755.8,0.73093712]
[1739561107547,1.1053,2755.9,2755.8,0.00544712]
[1739561108042,1.1053,2755.9,2755.8,0.73093712]
[1739561108354,1.1053,2755.9,2755.8,0.00544712]
[1739561108950,3.2078,2756.1,2755.8,0.00544712]
[1739561109249,0.5532,2756.1,2755.8,0.00544712]
[1739561109449,0.5419,2756.3,2755.8,0.00544712]
[1739561109650,0.5419,2756.3,2756.1,0.72539]
[1739561110155,1.26726,2756.3,2756.1,0.72539]
[1739561110557,1.26726,2756.3,2755.8,1.15884712]
[1739561110759,0.72539,2756.2,2756.0,0.72542]
[1739561110958,0.5419,2756.3,2755.8,1.88431712]